bitfinex-derivatives/quotes_SOLF0:USTF0_20260121
["timestamp","ask_amount","ask_price","bid_price","bid_amount"]
[1768983171089,10.58757155,127.66,127.59,4.60740121]
[1768983171286,5.81958249,127.65,127.62,0.05271075]
[1768983171488,4.76798906,127.66,127.62,0.05271075]
[1768983171686,5.81724972,127.65,127.62,0.05271075]
[1768983171888,4.76798906,127.66,127.62,0.05271075]
[1768983172090,5.81724972,127.65,127.62,0.05271075]
[1768983172287,4.76798906,127.66,127.62,0.05271075]
[1768983172490,5.81540454,127.65,127.62,0.05271075]
[1768983172683,4.76798906,127.66,127.62,0.05271075]
[1768983172884,5.81540454,127.65,127.62,0.05271075]
[1768983173083,4.76798906,127.66,127.62,0.05271075]
[1768983173284,5.81398863,127.65,127.62,0.05271075]
[1768983173489,4.76798906,127.66,127.62,0.05271075]
[1768983173792,5.81398863,127.65,127.62,0.05271075]
[1768983173993,4.76798906,127.66,127.62,0.05271075]
[1768983174184,5.81398863,127.65,127.62,0.05271075]
[1768983174386,4.76798906,127.66,127.62,0.05271075]
[1768983174596,5.81283136,127.65,127.62,0.05271075]
[1768983174892,4.76798906,127.66,127.62,0.05271075]
[1768983175087,5.81283136,127.65,127.62,0.05271075]
[1768983175289,4.76798906,127.66,127.62,0.05271075]
[1768983175490,10.57984556,127.65,127.58,7.0612]
[1768983175695,4.76798906,127.65,127.59,4.60740121]
[1768983175886,4.76798906,127.63,127.58,7.0612]
[1768983176780,4.76798906,127.63,127.59,0.05997699]
[1768983179799,4.76798906,127.63,127.59,7.12107699]
[1768983179995,6.65643648,127.65,127.59,11.7284782]
[1768983180194,5.80995684,127.64,127.59,4.6673782]
[1768983180493,4.76798906,127.65,127.59,4.6673782]
[1768983180695,5.80982162,127.64,127.59,4.6673782]
[1768983180895,4.76798906,127.65,127.59,4.6673782]
[1768983181193,5.80969795,127.64,127.59,4.6673782]
[1768983181395,4.76798906,127.65,127.61,7.06]
[1768983182396,4.76798906,127.65,127.62,0.05858212]
[1768983190700,4.76798906,127.65,127.57,4.60740121]
[1768983191001,4.76798906,127.64,127.57,4.60740121]
[1768983191904,4.76798906,127.64,127.59,0.05951293]
[1768983192598,4.8232441,127.63,127.59,0.05951293]
[1768983193407,4.8232441,127.63,127.59,7.12071293]
[1768983194408,4.8232441,127.63,127.59,0.05951293]
[1768983195504,4.8232441,127.63,127.59,7.12051293]
[1768983202413,4.68736615,127.65,127.6,7.0606]
[1768983203111,4.68736615,127.65,127.6,11.74335628]
[1768983204018,4.68736615,127.65,127.61,7.0599]
[1768983204515,4.68736615,127.65,127.62,0.05249115]
[1768983219934,4.68736615,127.64,127.57,4.68275628]
[1768983220130,4.68736615,127.62,127.57,4.68275628]
[1768983220330,4.68736615,127.62,127.55,301.12275628]
[1768983221142,4.68736615,127.62,127.57,0.05678087]
[1768983221526,4.74234399,127.61,127.57,0.05678087]
[1768983230333,4.22307658,127.63,127.57,4.55717035]
[1768983231841,4.22307658,127.63,127.58,7.0617]
[1768983240532,4.22307658,127.63,127.58,4.50038948]
[1768983240740,4.22307658,127.65,127.59,11.56148948]
[1768983241141,4.22307658,127.65,127.61,0.05832423]
[1768983243844,4.22307658,127.65,127.61,7.11832423]
[1768983244045,4.22307658,127.65,127.61,0.05832423]
[1768983245844,4.22307658,127.65,127.58,6.38862093]
[1768983246840,4.22307658,127.64,127.58,13.45032093]
[1768983247046,0.05851241,127.62,127.6,0.04990466]
[1768983255070,7.058,127.65,127.6,4.55029414]
[1768983255463,11.45796706,127.65,127.6,4.55029414]
[1768983256556,4.39996706,127.65,127.6,4.55029414]
[1768983256860,4.39996706,127.65,127.6,11.61069414]
[1768983258662,4.39996706,127.65,127.61,11.29064856]
[1768983261963,13.34499851,127.67,127.61,11.29064856]
[1768983262261,6.28819851,127.67,127.61,11.29064856]
[1768983262461,6.28819851,127.67,127.63,0.05110072]
[1768983262963,4.39996706,127.66,127.63,0.05110072]
[1768983266166,11.45726706,127.66,127.61,4.23054856]
[1768983267168,11.45726706,127.66,127.62,0.05756123]
[1768983268274,0.05277703,127.65,127.62,0.05756123]
[1768983269170,4.45274409,127.65,127.62,0.05756123]
[1768983269373,4.45274409,127.65,127.6,4.23054856]
[1768983270377,4.45274409,127.65,127.61,0.05627118]
[1768983283504,4.45274409,127.65,127.54,4.23054856]
[1768983283697,1.88823145,127.6,127.53,4.23054856]
[1768983284200,1.88823145,127.6,127.54,7.0639]
[1768983284607,0.05276064,127.58,127.51,4.23054856]
[1768983284808,1.88823145,127.56,127.51,4.23054856]
[1768983285888,1.88823145,127.56,127.52,0.05083734]
[1768983286811,7.0608,127.6,127.52,4.28003162]
[1768983287103,1.88823145,127.59,127.55,0.05573067]
[1768983287303,0.05576224,127.57,127.55,0.05573067]
[1768983291007,1.88823145,127.6,127.55,0.05573067]
[1768983292302,1.88823145,127.6,127.5,4.22919428]
[1768983292500,1.88823145,127.56,127.5,4.22919428]
[1768983292903,1.88823145,127.54,127.48,4.22919428]
[1768983293404,1.88823145,127.54,127.5,0.05987872]
[1768983293904,0.05512449,127.53,127.5,0.05987872]
[1768983294706,1.88823145,127.52,127.46,11.29729428]
[1768983294901,1.88823145,127.52,127.44,4.22919428]
[1768983295200,1.88823145,127.5,127.44,4.22919428]
[1768983295404,1.88823145,127.5,127.44,11.29839428]
[1768983295806,0.05138522,127.48,127.46,0.0496458]
[1768983296013,1.88823145,127.47,127.4,11.30059428]
[1768983297001,1.88823145,127.47,127.4,4.22919428]
[1768983297213,0.05084384,127.45,127.42,0.06030526]
[1768983298506,1.93907529,127.45,127.38,4.22919428]
[1768983299500,1.93907529,127.45,127.4,0.05330514]
[1768983300596,0.05084384,127.45,127.4,4.28249942]
[1768983300805,0.05084384,127.45,127.4,6.17073087]
[1768983301112,1.89350738,127.48,127.41,4.22919428]
[1768983301700,1.89350738,127.5,127.41,4.22919428]
[1768983301911,1.89350738,127.5,127.43,4.22919428]
[1768983302296,1.89350738,127.5,127.45,0.05701589]
[1768983304211,0.05742481,127.49,127.45,0.05701589]
[1768983305708,470.11469941,127.6,127.45,4.28621017]
[1768983306010,96.5159617,127.95,127.48,6.12270166]
[1768983306011,111.76100738,127.56,127.48,6.12270166]
[1768983306513,7.0642,127.54,127.48,6.12270166]
[1768983306706,1.89350738,127.54,127.45,6.12270166]
[1768983306908,0.05441641,127.52,127.45,6.12270166]
[1768983307207,7.11981641,127.52,127.45,6.12270166]
[1768983307402,9.01332379,127.52,127.45,4.22919428]
[1768983307910,9.01332379,127.52,127.47,0.05602893]
[1768983308504,0.05441641,127.52,127.47,4.28522321]
[1768983309304,109.8166,127.62,127.49,4.22919428]
[1768983309598,109.8503,127.58,127.51,1.89350738]
[1768983309805,111.74380738,127.58,127.5,4.22919428]
[1768983310108,1.89350738,127.6,127.52,4.22919428]
[1768983310407,0.05360955,127.57,127.55,0.05676413]
[1768983311007,0.05360955,127.57,127.52,4.22919428]
[1768983311614,0.05360955,127.57,127.5,4.22919428]
[1768983312007,109.91590955,127.57,127.48,4.22919428]
[1768983312208,114.92433749,127.57,127.48,4.22919428]
[1768983313014,7.0636,127.55,127.48,4.22919428]
[1768983313206,7.0636,127.55,127.5,0.05930709]
[1768983313408,0.05987206,127.53,127.5,0.05930709]
[1768983314010,0.05987206,127.53,127.5,4.28850137]
[1768983314620,7.0625,127.57,127.5,4.28850137]
[1768983315926,7.0616,127.59,127.5,4.28850137]
[1768983316118,7.0616,127.59,127.5,4.22919428]
[1768983316315,0.05292175,127.56,127.5,11.29509428]
[1768983316520,0.05292175,127.56,127.53,4.46422404]
[1768983317422,0.05292175,127.56,127.53,0.04984432]
[1768983318621,0.05292175,127.56,127.49,4.41437972]
[1768983319416,0.05292175,127.56,127.5,4.41437972]
[1768983319611,0.05292175,127.56,127.52,0.05721597]
[1768983328629,0.05292175,127.56,127.48,4.41437972]
[1768983328824,5.06203749,127.57,127.48,4.41437972]
[1768983329220,109.8451,127.59,127.5,4.41437972]
[1768983329919,0.05987993,127.56,127.51,4.41437972]
[1768983334432,0.05987993,127.56,127.51,11.47997972]
[1768983334636,0.05987993,127.56,127.52,4.41437972]
[1768983337534,1.89053421,127.59,127.53,4.41437972]
[1768983338527,7.0612,127.6,127.53,4.41437972]
[1768983338838,8.95173421,127.6,127.53,4.41437972]
[1768983339035,8.95173421,127.6,127.54,4.41437972]
[1768983340741,7.0612,127.6,127.54,4.41437972]
[1768983340942,1.89053421,127.61,127.55,4.41437972]
[1768983341732,1.89053421,127.61,127.56,4.41437972]
[1768983342136,1.89053421,127.63,127.57,4.41437972]
[1768983342444,1.89053421,127.63,127.57,4.47009293]
[1768983346045,7.0578,127.66,127.58,4.62369806]
[1768983346350,1.89053421,127.64,127.61,0.05339745]
[1768983346644,0.05628494,127.63,127.61,0.05820126]
[1768983351451,1.89053421,127.62,127.56,4.62369806]
[1768983351747,1.89053421,127.6,127.54,4.62369806]
[1768983352542,0.05365761,127.58,127.56,0.05791195]
[1768983355248,1.94419182,127.58,127.54,4.62369806]
[1768983358154,0.05365761,127.58,127.54,4.62369806]
[1768983358655,0.05365761,127.58,127.55,0.05966599]
[1768983361163,7.0607,127.6,127.55,4.68336405]
[1768983361661,8.94982334,127.62,127.55,4.68336405]
[1768983362365,0.0552889,127.6,127.55,4.68336405]
[1768983366866,0.0552889,127.6,127.55,11.74676405]
[1768983367562,0.0552889,127.6,127.56,4.62369806]
[1768983371469,1.88982334,127.62,127.57,4.62369806]
[1768983371656,133.3285,127.67,127.57,4.62369806]
[1768983371657,1.88982334,127.64,127.57,4.62369806]
[1768983372666,1.88982334,127.64,127.59,0.0569976]
[1768983372867,8.94822334,127.64,127.59,0.0569976]
[1768983373368,1.88982334,127.62,127.59,0.0569976]
[1768983376372,9.00685568,127.62,127.56,11.6816173]
[1768983376761,9.00685568,127.62,127.56,4.6188173]
[1768983376965,1.88982334,127.6,127.56,4.6188173]
[1768983377475,1.88982334,127.6,127.57,0.05607699]
[1768983377476,0.05360733,127.59,127.57,0.05607699]
[1768983380368,1.88982334,127.58,127.53,4.6188173]
[1768983381476,0.0574654,127.57,127.53,4.6188173]
[1768983384879,1.88982334,127.58,127.54,4.67002119]
[1768983385883,0.0520138,127.57,127.54,4.67002119]
[1768983388586,7.0612,127.59,127.54,4.67002119]
[1768983388879,1.88982334,127.6,127.54,4.67002119]
[1768983389787,8.95052334,127.6,127.54,4.67002119]
[1768983390684,1.88982334,127.6,127.55,4.6188173]
[1768983391588,1.88982334,127.62,127.56,4.6188173]
[1768983392088,1.88982334,127.62,127.58,0.05283323]
[1768983392886,8.94952334,127.62,127.58,0.05283323]
[1768983395393,8.94922334,127.63,127.58,0.05283323]
[1768983395593,0.05815605,127.61,127.57,4.6188173]
[1768983395793,0.05815605,127.61,127.59,0.05197325]
[1768983399396,1.94797939,127.61,127.57,4.6188173]
[1768983400896,1.94797939,127.61,127.58,0.05317556]
[1768983410505,1.94797939,127.61,127.55,4.52126518]
[1768983410703,1.88982334,127.61,127.55,4.52126518]
[1768983411704,0.05631616,127.59,127.55,4.52126518]
[1768983414500,0.05631616,127.59,127.56,0.06045393]
[1768983416110,8.94992334,127.62,127.56,4.58171911]
[1768983416302,7.0601,127.62,127.56,4.52126518]
[1768983417410,0.05096483,127.6,127.58,0.05283719]
[1768983418803,7.0601,127.62,127.58,4.57410237]
[1768983420612,0.05018815,127.61,127.58,4.57410237]
[1768983421210,8.94862334,127.64,127.58,4.57410237]
[1768983421410,1.88982334,127.64,127.58,4.57410237]
[1768983423008,1.88860994,127.64,127.58,4.57410237]
[1768983423206,1.88860994,127.64,127.58,0.05283719]
[1768983423405,0.05598574,127.62,127.58,0.05283719]
[1768983431723,0.05598574,127.62,127.58,4.57410237]
[1768983437029,1.94459568,127.62,127.56,4.31268993]
[1768983437223,1.88860994,127.6,127.56,4.31268993]
[1768983438333,0.05980623,127.59,127.57,0.05311558]
[1768983440632,7.0601,127.61,127.57,4.36580551]
[1768983441628,1.88860994,127.63,127.57,4.36580551]
[1768983441832,5.8305575,127.62,127.57,4.31268993]
[1768983442032,1.88860994,127.63,127.59,0.0541583]
[1768983442231,5.83066395,127.62,127.59,0.0541583]
[1768983442431,1.88860994,127.63,127.59,0.0541583]
[1768983442636,5.83054302,127.62,127.59,0.0541583]
[1768983442932,1.88860994,127.63,127.59,0.0541583]
[1768983443134,5.880687,127.62,127.55,4.31268993]
[1768983443326,0.05016599,127.62,127.55,4.31268993]
[1768983443834,1.88860994,127.61,127.55,4.31268993]
[1768983444232,0.04998836,127.59,127.55,4.31268993]
[1768983445231,1.9385983,127.59,127.55,4.31268993]
[1768983445930,1.9385983,127.59,127.56,0.05285989]
[1768983449236,1.9385983,127.59,127.55,4.31268993]
[1768983449636,8.9997983,127.59,127.55,4.31268993]
[1768983451840,8.9997983,127.59,127.56,0.05964875]
[1768983452342,8.9997983,127.59,127.55,4.31268993]
[1768983453041,7.0619,127.58,127.53,4.31268993]
[1768983453237,1.88860994,127.57,127.53,4.31268993]
[1768983453438,1.94506709,127.57,127.53,4.31268993]
[1768983454847,7.063,127.56,127.53,4.31268993]
[1768983455446,7.063,127.56,127.51,4.31268993]
[1768983456347,0.05210212,127.55,127.52,4.36952739]
[1768983456743,1.88860994,127.57,127.52,4.36952739]
[1768983457946,0.05883501,127.56,127.52,4.36952739]
[1768983466558,1.88860994,127.58,127.53,4.57337522]
[1768983467859,0.05027655,127.57,127.53,4.57337522]
[1768983470862,1.88860994,127.56,127.51,4.57337522]
[1768983475863,8.95160994,127.56,127.51,4.57337522]
[1768983477475,1.88860994,127.56,127.51,7.522e-05]
[1768983477769,1.88860994,127.53,127.44,1.88860994]
[1768983478175,0.04963252,127.5,127.47,0.05612392]
[1768983478368,8.95310994,127.53,127.47,0.05612392]
[1768983478763,1.88860994,127.53,127.47,7.12392392]
[1768983479370,0.05717384,127.51,127.47,7.12392392]
[1768983479579,1.88860994,127.53,127.47,7.12392392]
[1768983479766,1.88860994,127.53,127.48,4.57337522]
[1768983480575,0.05731229,127.52,127.48,4.57337522]
[1768983481576,1.88860994,127.51,127.48,4.57337522]
[1768983482070,1.88860994,127.51,127.43,1.88860994]
[1768983482071,1.88860994,127.51,127.46,4.57337522]
[1768983482373,1.88860994,127.49,127.46,4.57337522]
[1768983482977,1.89298117,127.49,127.46,4.57337522]
[1768983483273,1.9433391,127.49,127.46,4.63171781]
[1768983484876,0.05035793,127.49,127.46,4.63171781]
[1768983485076,7.0655,127.52,127.46,4.63171781]
[1768983485473,1.89298117,127.53,127.46,4.63171781]
[1768983486374,0.051163,127.51,127.46,4.63171781]
[1768983486673,1.89298117,127.53,127.47,4.57337522]
[1768983486674,8.95758117,127.53,127.47,4.57337522]
[1768983487872,0.05449707,127.51,127.49,0.05257147]
[1768983488776,0.05449707,127.51,127.47,4.57337522]
[1768983490475,1.89298117,127.54,127.47,4.57337522]
[1768983490682,1.89298117,127.54,127.49,4.57337522]
[1768983491687,0.05977308,127.53,127.49,4.57337522]
[1768983492879,7.12437308,127.53,127.49,4.57337522]
[1768983500681,0.05977308,127.53,127.49,4.57337522]
[1768983511094,0.05977308,127.53,127.49,11.63997522]
[1768983511397,1.89298117,127.55,127.5,4.6072013]
[1768983512086,8.95568117,127.57,127.5,4.6072013]
[1768983512592,8.95568117,127.57,127.52,0.06027208]
[1768983512593,0.0602381,127.55,127.52,0.06027208]
[1768983517901,1.95321927,127.55,127.52,0.06027208]
[1768983518700,1.89298117,127.53,127.49,4.6072013]
[1768983519797,0.04994647,127.52,127.5,0.05073743]
[1768983523404,8.95648117,127.55,127.5,4.65793873]
[1768983532211,0.05477066,127.54,127.5,4.65793873]
[1768983548923,11.12980194,127.54,127.46,1.89128531]
[1768983549132,11.75602807,127.53,127.44,1.89128531]
[1768983549320,5.90211659,127.53,127.44,1.89128531]
[1768983550017,0.05566467,127.5,127.44,1.89128531]
[1768983550208,0.05566467,127.5,127.47,0.05196353]
[1768983551022,0.05566467,127.5,127.47,4.76984448]
[1768983551523,12.96671659,127.53,127.47,4.76984448]
[1768983552922,12.96671659,127.53,127.48,4.71788095]
[1768983554221,5.90211659,127.53,127.48,4.71788095]
[1768983560730,0.05056334,127.52,127.48,4.71788095]
[1768983569640,0.05056334,127.52,127.5,4.46986267]
[1768983569829,1.89128531,127.55,127.5,4.46986267]
[1768983570034,5.85268436,127.54,127.5,4.46986267]
[1768983570234,6.07518352,127.55,127.5,4.46986267]
[1768983570435,5.85292549,127.54,127.5,4.46986267]
[1768983570638,6.07518352,127.55,127.5,4.46986267]
[1768983570942,5.85245165,127.54,127.51,0.05580916]
[1768983571141,13.13868352,127.55,127.51,0.05580916]
[1768983571340,5.85269872,127.54,127.51,0.05580916]
[1768983571527,13.13868352,127.55,127.5,4.46986267]
[1768983571733,5.85269661,127.54,127.5,4.46986267]
[1768983571933,4.19183159,127.54,127.48,4.46986267]
[1768983572233,4.19183159,127.54,127.48,11.53716267]
[1768983572540,4.19183159,127.54,127.49,4.46986267]
[1768983572739,4.19183159,127.54,127.5,0.05471751]
[1768983572941,11.25583159,127.54,127.5,0.05471751]
[1768983573344,0.05655381,127.53,127.5,0.05471751]
[1768983575246,0.05655381,127.53,127.5,4.52458018]
[1768983579446,1.94783912,127.53,127.5,4.52458018]
[1768983579944,1.94783912,127.53,127.48,11.53716267]
[1768983580446,0.05655381,127.53,127.49,4.46986267]
[1768983581546,0.05655381,127.53,127.5,0.0545806]
[1768983581750,0.05655381,127.53,127.5,4.52444327]
[1768983581946,1.89128531,127.55,127.5,4.52444327]
[1768983582846,1.89128531,127.55,127.5,11.59044327]
[1768983583646,0.05164179,127.54,127.5,11.59044327]
[1768983584149,0.05164179,127.54,127.51,4.46986267]
[1768983594457,1.9429271,127.54,127.5,0.0545806]
[1768983604557,7.27934799,127.58,127.51,4.65891446]
[1768983604757,5.8494004,127.57,127.52,4.65891446]
[1768983605057,8.95179411,127.59,127.52,4.65891446]
[1768983605248,5.84577759,127.58,127.53,4.65891446]
[1768983605451,4.3489817,127.6,127.53,4.65891446]
[1768983605653,6.23917581,127.62,127.55,4.65891446]
[1768983605851,5.84617094,127.61,127.55,4.70966124]
[1768983606052,0.0603348,127.59,127.55,4.70966124]
[1768983606565,4.3489817,127.62,127.55,4.70966124]
[1768983607661,0.05538962,127.6,127.55,4.70966124]
[1768983608057,7.0594,127.63,127.55,4.70966124]
[1768983608261,117.07524799,127.65,127.54,8.95409411]
[1768983608262,4.3489817,127.65,127.59,4.65891446]
[1768983608657,1.89019411,127.64,127.59,4.65891446]
[1768983609256,1.89019411,127.64,127.56,8.95249411]
[1768983609257,1.89019411,127.67,127.61,4.65891446]
[1768983609558,6.23917581,127.65,127.58,4.65891446]
[1768983609758,4.3489817,127.64,127.58,4.65891446]
[1768983609959,7.0571,127.67,127.58,4.65891446]
[1768983609960,6.23917581,127.63,127.58,4.65891446]
[1768983610465,6.23917581,127.63,127.59,0.05046111]
[1768983613868,1.89019411,127.64,127.59,4.70937557]
[1768983617471,4.61007204,127.63,127.59,0.05046111]
[1768983617663,1.89019411,127.62,127.59,0.05046111]
[1768983618165,4.55363524,127.61,127.55,4.74648123]
[1768983618373,6.44382935,127.6,127.55,4.74648123]
[1768983619470,6.44382935,127.6,127.56,0.05468715]
[1768983619670,0.05900692,127.59,127.56,0.05468715]
[1768983620173,13.50362935,127.62,127.56,4.80116838]
[1768983621967,1.89019411,127.6,127.56,4.80116838]
[1768983626481,0.05245596,127.59,127.56,4.80116838]
[1768983633575,0.05245596,127.59,127.56,0.05468715]
[1768983641090,0.05245596,127.59,127.56,4.80116838]
[1768983641885,6.44382935,127.62,127.56,4.80116838]
[1768983642085,1.89019411,127.62,127.56,4.80116838]
[1768983642485,1.89019411,127.62,127.57,4.74648123]
[1768983642990,0.05557179,127.61,127.57,4.74648123]
[1768983644491,0.05557179,127.61,127.57,11.80878123]
[1768983645591,0.05557179,127.61,127.58,5.00002952]
[1768983660613,0.05557179,127.61,127.56,4.64726641]
[1768983660917,0.05557179,127.61,127.56,11.71006641]
[1768983661216,0.05557179,127.61,127.57,4.59257926]
[1768983663421,6.85344708,127.61,127.56,0.05468715]
[1768983663615,6.85344708,127.61,127.55,4.59257926]
[1768983663616,1.89019411,127.59,127.55,4.59257926]
[1768983664919,8.95149411,127.59,127.56,0.04950823]
[1768983665610,9.00646693,127.59,127.56,0.04950823]
[1768983666922,7.11627282,127.59,127.56,0.04950823]
[1768983668516,12.023954,127.59,127.53,4.59257926]
[1768983669721,12.023954,127.59,127.55,0.05872003]
[1768983670118,1.88987438,127.58,127.55,0.05872003]
[1768983672410,12.023954,127.59,127.55,0.05872003]
[1768983672615,7.11627282,127.59,127.55,4.65129929]
[1768983675312,0.05497282,127.59,127.55,4.65129929]
[1768983681331,1.88987438,127.58,127.55,4.65129929]
[1768983684527,6.87176999,127.58,127.55,0.05872003]
[1768983684725,1.88987438,127.58,127.55,0.05872003]
[1768983687328,1.88987438,127.58,127.53,12.02382499]
[1768983688134,1.88987438,127.58,127.53,4.95932499]
[1768983688432,1.88987438,127.58,127.54,0.05004571]
[1768983688642,1.88987438,127.58,127.54,5.0093707]
[1768983693926,1.88987438,127.56,127.52,4.95932499]
[1768983695139,0.05149054,127.55,127.53,0.05900875]
[1768983695831,5.03338615,127.55,127.5,4.95932499]
[1768983696039,1.88987438,127.54,127.5,4.95932499]
[1768983697137,1.88987438,127.54,127.51,0.05688124]
[1768983702945,5.03338615,127.55,127.51,0.05688124]
[1768983709847,12.09678615,127.55,127.51,0.05688124]
[1768983710047,4.91439802,127.54,127.49,5.0941434]
[1768983711052,4.91439802,127.54,127.5,0.05205024]
[1768983716152,4.91439802,127.54,127.5,0.05205024]
[1768983718664,4.91439802,127.54,127.5,4.9477296]
[1768983721658,4.91439802,127.54,127.5,12.0137296]
[1768983722063,4.91439802,127.54,127.5,7.11805024]
[1768983726771,0.05149054,127.55,127.5,7.11805024]
[1768983726772,4.77968465,127.55,127.5,12.0137296]
[1768983746582,0.05149054,127.55,127.51,4.98943266]
[1768983746785,4.74862649,127.57,127.51,4.98943266]
[1768983747381,4.74862649,127.57,127.52,12.05433266]
[1768983747785,0.05117984,127.56,127.53,0.05037612]
[1768983750387,1.89101163,127.62,127.55,4.98943266]
[1768983750585,4.74862649,127.63,127.57,4.98943266]
[1768983750886,5.85660704,127.62,127.57,4.98943266]
[1768983751074,4.74862649,127.63,127.57,4.98943266]
[1768983751276,0.05780823,127.61,127.59,0.05997797]
[1768983757382,4.74862649,127.63,127.59,0.05997797]
[1768983758495,0.05241687,127.62,127.59,5.04941063]
[1768983760793,4.74862649,127.64,127.59,5.04941063]
[1768983761799,0.05910741,127.63,127.59,5.04941063]
[1768983764892,4.8077339,127.63,127.59,5.04941063]
[1768983768005,11.8668339,127.63,127.57,6.79497483]
[1768983768606,11.8668339,127.63,127.58,4.9039632]
[1768983769104,11.8668339,127.63,127.59,0.0598995]
[1768983778205,5.20472571,127.62,127.59,0.0598995]
[1768983778412,5.20472571,127.62,127.57,7.0623]
[1768983779003,5.20472571,127.62,127.58,4.9039632]
[1768983779510,5.20472571,127.62,127.59,0.06004897]
[1768983780415,0.05910741,127.63,127.59,4.96401217]
[1768983781719,11.88298982,127.66,127.59,4.96401217]
[1768983781919,11.88298982,127.66,127.6,4.89064873]
[1768983782719,0.05368,127.64,127.62,0.05846595]
[1768983804540,4.82538982,127.66,127.62,0.05846595]
[1768983805438,0.05209877,127.65,127.62,0.05846595]
[1768983812243,0.05209877,127.65,127.62,4.85891591]
[1768983812443,4.94259424,127.67,127.62,4.85891591]
[1768983813641,0.05500797,127.66,127.62,4.85891591]
[1768983814141,6.88524373,127.66,127.62,0.05846595]
[1768983814439,4.94259424,127.65,127.62,0.05846595]
[1768983840760,0.05500797,127.66,127.62,7.11796595]
[1768983841059,5.20840561,127.66,127.62,7.11796595]
[1768983841864,5.20840561,127.66,127.62,0.05846595]
[1768983848168,5.15339764,127.64,127.58,12.07250782]
[1768983849266,5.15339764,127.64,127.6,0.05384257]
[1768983850066,5.15339764,127.65,127.6,5.06495039]
[1768983851364,0.0575022,127.64,127.6,5.06495039]
[1768983851665,0.0575022,127.64,127.6,12.12555039]
[1768983853971,0.0575022,127.64,127.61,5.01110782]
[1768983854372,14.09773243,127.67,127.61,5.01110782]
[1768983854571,5.87453465,127.66,127.61,5.01110782]
[1768983854770,14.09773243,127.67,127.61,5.01110782]
[1768983854963,5.87453673,127.66,127.61,5.01110782]
[1768983855163,5.15339764,127.66,127.61,5.01110782]
[1768983855472,5.15339764,127.66,127.62,0.0589299]
[1768983855774,0.05549853,127.65,127.62,0.0589299]
[1768983856070,0.05549853,127.65,127.62,5.17512266]
[1768983857575,0.05549853,127.65,127.62,0.0589299]
[1768983870079,0.05549853,127.65,127.62,12.23462266]
[1768983870274,5.20294617,127.68,127.63,5.11619276]
[1768983870478,5.88077922,127.67,127.63,5.11619276]
[1768983870678,5.20294617,127.69,127.63,5.11619276]
[1768983870879,5.88150996,127.68,127.63,5.11619276]
[1768983871179,5.20294617,127.69,127.64,0.05764746]
[1768983871379,0.05575014,127.67,127.64,0.05764746]
[1768983876788,0.05575014,127.67,127.64,5.17384022]
[1768983877087,5.20294617,127.69,127.64,5.17384022]
[1768983877987,0.03239108,127.68,127.64,5.17384022]
[1768983880390,0.03239108,127.68,127.65,5.11619276]
[1768983881179,0.03239108,127.68,127.65,12.17399276]
[1768983891492,0.03239108,127.68,127.65,5.11619276]
[1768983904495,5.0166826,127.68,127.64,0.05764746]
[1768983904799,4.98429152,127.65,127.57,5.18054706]
[1768983905098,6.87182631,127.64,127.57,5.18054706]
[1768983905793,0.05227966,127.62,127.59,5.23977418]
[1768983911404,6.87182631,127.64,127.59,5.23977418]
[1768983912604,0.03775888,127.63,127.59,5.23977418]
[1768983914495,0.03775888,127.63,127.59,12.30097418]
[1768983931623,0.03775888,127.63,127.59,5.23977418]
[1768983932622,1.88841636,127.62,127.59,0.05922712]
[1768983939433,7.10649189,127.62,127.57,7.0623]
[1768983939933,7.10649189,127.62,127.57,12.02096499]
[1768983940634,7.10649189,127.62,127.58,0.05224807]
[1768983944944,14.16619189,127.62,127.58,0.05224807]
[1768983945139,5.13666428,127.61,127.53,4.94240875]
[1768983945349,5.13666428,127.59,127.53,4.94240875]
[1768983945848,7.062,127.58,127.53,4.94240875]
[1768983946340,0.05077837,127.57,127.54,0.04952956]
[1768983946548,5.18744265,127.57,127.54,0.04952956]
[1768983948937,0.05077837,127.57,127.54,0.04952956]
[1768983960655,0.05077837,127.57,127.54,4.99193831]
[1768983960858,5.13666428,127.59,127.54,4.99193831]
[1768983961659,5.21067132,127.61,127.55,5.22727081]
[1768983961958,5.21067132,127.61,127.57,0.04970548]
[1768983962157,0.05302265,127.59,127.57,0.04970548]
[1768983964754,0.05302265,127.59,127.57,5.27697629]
[1768983965058,7.09908768,127.63,127.57,5.27697629]
[1768983965248,5.21067132,127.62,127.57,5.27697629]
[1768983966860,5.21067132,127.62,127.57,12.33927629]
[1768983969867,1.88841636,127.61,127.57,0.04970548]
[1768983970059,7.09908768,127.61,127.57,0.04970548]
[1768983970665,5.21067132,127.6,127.57,0.04970548]
[1768983972264,5.25610437,127.6,127.57,0.04970548]
[1768983979078,0.04543305,127.6,127.57,0.04970548]
[1768983990987,5.19362999,127.6,127.57,0.04970548]
[1768983991577,5.19362999,127.6,127.54,4.91463307]
[1768983992581,5.19362999,127.6,127.56,0.05970458]
[1768983992886,12.25422999,127.6,127.56,0.05970458]
[1768983997985,5.19362999,127.6,127.56,0.05970458]
[1768983998194,0.04543305,127.6,127.56,4.97433765]
[1768984006112,0.04543305,127.6,127.56,12.03723765]
[1768984008511,4.89728893,127.6,127.56,0.05970458]
[1768984011108,0.04543305,127.6,127.56,5.10637083]